[Event "Early-Titled-Tuesday-Blitz-November-28-2023"]
[Site "Chess.com"]
[Date "2023.11.28"]
[Round "5"]
[White "acertijo08"]
[Black "Cheer_Down"]
[Result "0-1"]
[WhiteElo "2292"]
[BlackElo "2491"]
[TimeControl "180+1"]
[EndTime "8:58:48 PST"]
[Termination "Cheer_Down won by resignation"]

1. e4 {[%clk 0:03:00.9]} 1... e6 {[%clk 0:02:59.6]} 2. d4 {[%clk 0:03:00.7]}
2... d5 {[%clk 0:03:00.2]} 3. Nc3 {[%clk 0:03:00.8]} 3... Nf6 {[%clk 0:02:59.5]}
4. e5 {[%clk 0:03:00.9]} 4... Nfd7 {[%clk 0:02:59.6]} 5. f4 {[%clk 0:03:01.4]}
5... c5 {[%clk 0:02:59.7]} 6. Nf3 {[%clk 0:03:01.9]} 6... Nc6 {[%clk 0:02:59.9]}
7. Be3 {[%clk 0:03:01.9]} 7... a6 {[%clk 0:02:55.6]} 8. Qd2 {[%clk 0:03:01.8]}
8... b5 {[%clk 0:02:54.2]} 9. a3 {[%clk 0:03:02.3]} 9... Qb6 {[%clk 0:02:51.7]}
10. Ne2 {[%clk 0:02:59.7]} 10... cxd4 {[%clk 0:02:47.9]} 11. Nexd4 {[%clk
0:02:59.4]} 11... Bc5 {[%clk 0:02:32.1]} 12. c3 {[%clk 0:02:59.2]} 12... f6
{[%clk 0:02:19.5]} 13. exf6 {[%clk 0:02:40.7]} 13... Nxf6 {[%clk 0:02:16.8]} 14.
Bd3 {[%clk 0:02:35.5]} 14... O-O {[%clk 0:02:12.2]} 15. b4 {[%clk 0:02:33.9]}
15... Bxd4 {[%clk 0:02:08.8]} 16. Nxd4 {[%clk 0:02:33.2]} 16... Nxd4 {[%clk
0:02:04.5]} 17. Bxd4 {[%clk 0:02:33.3]} 17... Qc7 {[%clk 0:02:04]} 18. O-O
{[%clk 0:02:30.7]} 18... Ne4 {[%clk 0:02:01.1]} 19. Qe3 {[%clk 0:02:19.1]} 19...
Bb7 {[%clk 0:02:00.6]} 20. Rf3 {[%clk 0:02:04.7]} 20... Rac8 {[%clk 0:01:56.3]}
21. Bxe4 {[%clk 0:01:52.5]} 21... dxe4 {[%clk 0:01:56.1]} 22. Rg3 {[%clk
0:01:52.8]} 22... Rf7 {[%clk 0:01:56.6]} 23. Rf1 {[%clk 0:01:38.5]} 23... Rd8
{[%clk 0:01:48.2]} 24. f5 {[%clk 0:01:21.6]} 24... Rdf8 {[%clk 0:01:29.9]} 25.
f6 {[%clk 0:00:57.9]} 25... g6 {[%clk 0:01:29.8]} 26. Qg5 {[%clk 0:00:55.1]}
26... Rd8 {[%clk 0:01:26.2]} 27. h4 {[%clk 0:00:53.2]} 27... Rd5 {[%clk
0:01:25.1]} 28. Qg4 {[%clk 0:00:47.8]} 28... Rf5 {[%clk 0:01:20.5]} 29. Re1
{[%clk 0:00:41.3]} 29... Kh8 {[%clk 0:00:54.4]} 30. Rge3 {[%clk 0:00:28.6]}
30... e5 {[%clk 0:00:53.3]} 31. Bc5 {[%clk 0:00:28.2]} 31... R7xf6 {[%clk
0:00:51.7]} 32. Rxe4 {[%clk 0:00:25.9]} 32... Bxe4 {[%clk 0:00:50.3]} 33. Qxe4
{[%clk 0:00:26]} 33... Qf7 {[%clk 0:00:48.2]} 34. Qa8+ {[%clk 0:00:24.9]} 34...
Kg7 {[%clk 0:00:47.7]} 35. Rd1 {[%clk 0:00:20.2]} 35... Rf1+ {[%clk 0:00:46.9]}
36. Rxf1 {[%clk 0:00:20.5]} 36... Rxf1+ {[%clk 0:00:47.3]} 37. Kh2 {[%clk
0:00:20.6]} 37... Qf4+ {[%clk 0:00:46]} 38. g3 {[%clk 0:00:20.1]} 38... Qd2+
{[%clk 0:00:41.6]} 39. Qg2 {[%clk 0:00:19.5]} 39... Qxg2+ {[%clk 0:00:40.9]} 40.
Kxg2 {[%clk 0:00:20.4]} 40... Rc1 {[%clk 0:00:39.5]} 41. Bd6 {[%clk 0:00:20.5]}
41... Kf6 {[%clk 0:00:38.6]} 42. Kf3 {[%clk 0:00:20.1]} 42... Rxc3+ {[%clk
0:00:37.6]} 43. Ke4 {[%clk 0:00:21]} 43... Rc4+ {[%clk 0:00:38]} 44. Kd5 {[%clk
0:00:20.9]} 44... e4 {[%clk 0:00:35]} 45. Be5+ {[%clk 0:00:19.8]} 45... Kf7
{[%clk 0:00:35.3]} 46. Bd4 {[%clk 0:00:19.1]} 46... h5 {[%clk 0:00:29.2]} 47.
Kxe4 {[%clk 0:00:19]} 47... Ke6 {[%clk 0:00:29.2]} 48. Kd3 {[%clk 0:00:18.6]}
48... Kd5 {[%clk 0:00:29.3]} 49. Be3 {[%clk 0:00:18.6]} 49... Rc8 {[%clk
0:00:28.1]} 50. Bg5 {[%clk 0:00:16.7]} 50... Re8 {[%clk 0:00:27.4]} 51. Bf4
{[%clk 0:00:15.7]} 51... Re4 {[%clk 0:00:27.1]} 52. Bg5 {[%clk 0:00:15.7]} 52...
Rd4+ {[%clk 0:00:27.1]} 53. Kc3 {[%clk 0:00:15.7]} 53... Ke4 {[%clk 0:00:27.1]}
54. Bf4 {[%clk 0:00:14.3]} 54... Rd3+ {[%clk 0:00:27.3]} 55. Kb2 {[%clk
0:00:14.7]} 55... Kd4 {[%clk 0:00:26.2]} 56. Bg5 {[%clk 0:00:14.2]} 56... Kc4
{[%clk 0:00:26.3]} 57. Bf4 {[%clk 0:00:14.3]} 57... Rf3 {[%clk 0:00:26.4]} 58.
Ka2 {[%clk 0:00:13.7]} 58... Rf2+ {[%clk 0:00:26.1]} 59. Kb1 {[%clk 0:00:14.1]}
59... Kb3 {[%clk 0:00:26]} 60. Kc1 {[%clk 0:00:14.5]} 60... Kxa3 {[%clk
0:00:25.2]} 61. Bd6 {[%clk 0:00:15.2]} 61... Rg2 {[%clk 0:00:25.1]} 62. Kd1
{[%clk 0:00:14.1]} 62... Kb3 {[%clk 0:00:25.3]} 63. Kc1 {[%clk 0:00:14.4]} 63...
Kc4 {[%clk 0:00:24.4]} 64. Kb1 {[%clk 0:00:14.2]} 64... Rd2 {[%clk 0:00:24.3]}
65. Bc5 {[%clk 0:00:13.2]} 65... Rd1+ {[%clk 0:00:22.6]} 66. Kc2 {[%clk
0:00:13.4]} 66... Rd3 {[%clk 0:00:22.3]} 0-1

[Event "Early-Titled-Tuesday-Blitz-November-28-2023"]
[Site "Chess.com"]
[Date "2023.11.28"]
[Round "5"]
[White "Aradhya2000"]
[Black "JimDiGrease"]
[Result "1-0"]
[WhiteElo "2705"]
[BlackElo "2953"]
[TimeControl "180+1"]
[EndTime "8:58:49 PST"]
[Termination "Aradhya2000 won by resignation"]

1. d4 {[%clk 0:03:00.9]} 1... d5 {[%clk 0:02:57]} 2. c4 {[%clk 0:03:01]} 2... e6
{[%clk 0:02:56.8]} 3. Nc3 {[%clk 0:03:01]} 3... c6 {[%clk 0:02:56.8]} 4. e3
{[%clk 0:02:56.7]} 4... Nf6 {[%clk 0:02:56.7]} 5. Nf3 {[%clk 0:02:57.1]} 5...
Nbd7 {[%clk 0:02:56.4]} 6. Qc2 {[%clk 0:02:56.6]} 6... Bd6 {[%clk 0:02:55.9]} 7.
b3 {[%clk 0:02:56.5]} 7... O-O {[%clk 0:02:54]} 8. Be2 {[%clk 0:02:56.8]} 8...
b6 {[%clk 0:02:51.2]} 9. O-O {[%clk 0:02:56.6]} 9... Bb7 {[%clk 0:02:50.7]} 10.
Bb2 {[%clk 0:02:57]} 10... Qe7 {[%clk 0:02:50.8]} 11. Rad1 {[%clk 0:02:56.5]}
11... Rfe8 {[%clk 0:02:48.9]} 12. Bd3 {[%clk 0:02:55.3]} 12... Rac8 {[%clk
0:02:15.7]} 13. e4 {[%clk 0:02:44.6]} 13... dxe4 {[%clk 0:02:11.3]} 14. Nxe4
{[%clk 0:02:45.5]} 14... Nxe4 {[%clk 0:02:10.6]} 15. Bxe4 {[%clk 0:02:46.4]}
15... Nf6 {[%clk 0:02:11]} 16. Bd3 {[%clk 0:02:45.6]} 16... c5 {[%clk
0:02:08.1]} 17. dxc5 {[%clk 0:02:45.5]} 17... Bxc5 {[%clk 0:01:47.4]} 18. Bxf6
{[%clk 0:02:44.7]} 18... gxf6 {[%clk 0:01:34.9]} 19. Bxh7+ {[%clk 0:02:44.8]}
19... Kg7 {[%clk 0:01:35.5]} 20. Be4 {[%clk 0:02:43.6]} 20... Ba6 {[%clk
0:01:36]} 21. Nd4 {[%clk 0:02:34.2]} 21... f5 {[%clk 0:01:19.1]} 22. Bxf5 {[%clk
0:02:14.6]} 22... Qf6 {[%clk 0:01:10.4]} 23. Nxe6+ {[%clk 0:01:21.8]} 23... fxe6
{[%clk 0:01:10.6]} 24. Rd7+ {[%clk 0:01:22.4]} 24... Re7 {[%clk 0:01:09]} 25.
Rxe7+ {[%clk 0:01:22.7]} 25... Bxe7 {[%clk 0:01:00.4]} 26. Be4 {[%clk
0:01:22.2]} 26... b5 {[%clk 0:00:54.3]} 27. Bd3 {[%clk 0:01:16.1]} 27... Bb7
{[%clk 0:00:51]} 28. Qe2 {[%clk 0:01:13.9]} 28... Rc5 {[%clk 0:00:37.1]} 29.
cxb5 {[%clk 0:01:09.7]} 29... Re5 {[%clk 0:00:36.5]} 30. Qd1 {[%clk 0:01:05.2]}
30... Bc5 {[%clk 0:00:31.3]} 31. Kh1 {[%clk 0:01:05.2]} 31... Bxf2 {[%clk
0:00:25.5]} 32. Be2 {[%clk 0:01:01.5]} 32... Rg5 {[%clk 0:00:15.5]} 33. Qd7+
{[%clk 0:00:57.8]} 33... Kh6 {[%clk 0:00:09.6]} 34. Qxb7 {[%clk 0:00:55.9]}
34... Rf5 {[%clk 0:00:04.9]} 35. Qe4 {[%clk 0:00:29.9]} 35... Rf4 {[%clk
0:00:04.1]} 36. Qd3 {[%clk 0:00:29.5]} 36... Rh4 {[%clk 0:00:03.3]} 37. g3
{[%clk 0:00:27.2]} 37... Rd4 {[%clk 0:00:03.3]} 38. Qf3 {[%clk 0:00:20]} 38...
Qxf3+ {[%clk 0:00:03.4]} 39. Bxf3 {[%clk 0:00:20.9]} 39... Rd2 {[%clk
0:00:04.3]} 40. a4 {[%clk 0:00:20.7]} 40... Rb2 {[%clk 0:00:04.3]} 41. Bg4
{[%clk 0:00:17.6]} 41... e5 {[%clk 0:00:04.1]} 42. Be6 {[%clk 0:00:17.9]} 42...
e4 {[%clk 0:00:04.2]} 43. Bc4 {[%clk 0:00:18.6]} 43... e3 {[%clk 0:00:04.5]} 44.
Kg2 {[%clk 0:00:19.1]} 44... Kg5 {[%clk 0:00:02]} 45. Kf3 {[%clk 0:00:19.5]}
45... Kf5 {[%clk 0:00:02.6]} 46. h4 {[%clk 0:00:19.7]} 46... Rc2 {[%clk
0:00:01.9]} 47. Rd1 {[%clk 0:00:17.3]} 47... Rc3 {[%clk 0:00:02.8]} 48. Be2
{[%clk 0:00:17.1]} 48... Rxb3 {[%clk 0:00:02.7]} 49. a5 {[%clk 0:00:17.2]} 49...
Rb4 {[%clk 0:00:01.5]} 50. Rd5+ {[%clk 0:00:15.6]} 50... Ke6 {[%clk 0:00:01.6]}
51. Rc5 {[%clk 0:00:15.6]} 51... Bg1 {[%clk 0:00:02.1]} 52. Rc4 {[%clk
0:00:15.9]} 52... Rb1 {[%clk 0:00:01.7]} 53. Re4+ {[%clk 0:00:15.9]} 53... Kd5
{[%clk 0:00:01.8]} 54. Re7 {[%clk 0:00:15.8]} 54... Kc5 {[%clk 0:00:02.4]} 55.
Rxa7 {[%clk 0:00:15.7]} 55... Bh2 {[%clk 0:00:02.6]} 56. b6 {[%clk 0:00:15.5]}
56... Rg1 {[%clk 0:00:02.6]} 57. Rg7 {[%clk 0:00:15.1]} 57... Rb1 {[%clk
0:00:02]} 58. b7 {[%clk 0:00:15.3]} 1-0

[Event "Early-Titled-Tuesday-Blitz-November-28-2023"]
[Site "Chess.com"]
[Date "2023.11.28"]
[Round "5"]
[White "Kotofeyca"]
[Black "SnekkerAndersen"]
[Result "0-1"]
[WhiteElo "2446"]
[BlackElo "2543"]
[TimeControl "180+1"]
[EndTime "8:58:56 PST"]
[Termination "SnekkerAndersen won by resignation"]

1. d4 {[%clk 0:03:00.9]} 1... d6 {[%clk 0:02:58.3]} 2. c4 {[%clk 0:03:01]} 2...
Nf6 {[%clk 0:02:59.2]} 3. Nc3 {[%clk 0:03:01.2]} 3... Nbd7 {[%clk 0:02:59.9]} 4.
e4 {[%clk 0:03:01.5]} 4... e5 {[%clk 0:03:00.5]} 5. Nf3 {[%clk 0:03:01.3]} 5...
Be7 {[%clk 0:03:00.9]} 6. Be2 {[%clk 0:03:00.1]} 6... O-O {[%clk 0:03:01.2]} 7.
O-O {[%clk 0:03:00.2]} 7... c6 {[%clk 0:03:01.9]} 8. Be3 {[%clk 0:02:58.6]} 8...
Qc7 {[%clk 0:03:02.4]} 9. c5 {[%clk 0:02:47.6]} 9... exd4 {[%clk 0:03:01.8]} 10.
cxd6 {[%clk 0:02:46.8]} 10... Bxd6 {[%clk 0:03:02.3]} 11. Bxd4 {[%clk
0:02:42.2]} 11... Re8 {[%clk 0:03:02.2]} 12. Qc2 {[%clk 0:02:35.6]} 12... Ne5
{[%clk 0:02:58.5]} 13. Nxe5 {[%clk 0:02:18.4]} 13... Bxe5 {[%clk 0:02:57.5]} 14.
Bxe5 {[%clk 0:02:08.8]} 14... Qxe5 {[%clk 0:02:58.4]} 15. f4 {[%clk 0:02:08.9]}
15... Qd4+ {[%clk 0:02:54.8]} 16. Kh1 {[%clk 0:02:09.1]} 16... Nxe4 {[%clk
0:02:55.4]} 17. Nxe4 {[%clk 0:02:01.2]} 17... Qxe4 {[%clk 0:02:55.7]} 18. Bd3
{[%clk 0:01:59.9]} 18... Qb4 {[%clk 0:02:46.4]} 19. a3 {[%clk 0:01:51]} 19...
Qa5 {[%clk 0:02:34.4]} 20. Bxh7+ {[%clk 0:01:47.1]} 20... Kf8 {[%clk 0:02:34.1]}
21. b4 {[%clk 0:01:34.2]} 21... Qh5 {[%clk 0:02:26.1]} 22. Be4 {[%clk
0:01:00.9]} 22... Be6 {[%clk 0:02:17.9]} 23. f5 {[%clk 0:00:56.8]} 23... Bd7
{[%clk 0:02:09.6]} 24. f6 {[%clk 0:00:55.4]} 24... gxf6 {[%clk 0:02:08.9]} 25.
Rxf6 {[%clk 0:00:50.6]} 25... Qh4 {[%clk 0:01:31.6]} 26. Raf1 {[%clk 0:00:36.1]}
26... Re7 {[%clk 0:00:59]} 27. g3 {[%clk 0:00:15.9]} 27... Qg5 {[%clk
0:00:37.2]} 28. Qf2 {[%clk 0:00:12.6]} 28... Be8 {[%clk 0:00:27.6]} 29. Bg2
{[%clk 0:00:07.7]} 29... Rd8 {[%clk 0:00:25.3]} 30. h4 {[%clk 0:00:05.6]} 30...
Qe5 {[%clk 0:00:19.8]} 31. Kh2 {[%clk 0:00:05.1]} 31... Rd3 {[%clk 0:00:18.6]}
32. Qc2 {[%clk 0:00:02.9]} 32... Qxg3+ {[%clk 0:00:16.1]} 33. Kh1 {[%clk
0:00:03.3]} 33... Rd4 {[%clk 0:00:14.2]} 34. Qc5 {[%clk 0:00:02]} 34... Qd6
{[%clk 0:00:04.8]} 35. Kg1 {[%clk 0:00:02.9]} 35... Qxc5 {[%clk 0:00:05]} 36.
bxc5 {[%clk 0:00:03.3]} 36... Rxh4 {[%clk 0:00:05.6]} 37. Be4 {[%clk 0:00:03]}
37... Rhxe4 {[%clk 0:00:04.6]} 38. R6f3 {[%clk 0:00:03.2]} 38... Rg4+ {[%clk
0:00:04.8]} 39. Kh2 {[%clk 0:00:04]} 39... Ree4 {[%clk 0:00:05.1]} 40. Rh3
{[%clk 0:00:04.9]} 40... Rh4 {[%clk 0:00:05.6]} 41. Rf3 {[%clk 0:00:05.5]} 41...
Rxh3+ {[%clk 0:00:06.1]} 42. Kxh3 {[%clk 0:00:06.4]} 42... Ke7 {[%clk 0:00:07]}
43. Kg3 {[%clk 0:00:07.2]} 43... Re6 {[%clk 0:00:07.9]} 44. Rf2 {[%clk
0:00:07.8]} 44... Re5 {[%clk 0:00:08.5]} 45. Rf4 {[%clk 0:00:08.7]} 45... f6
{[%clk 0:00:09]} 46. Kf2 {[%clk 0:00:09.3]} 46... Bf7 {[%clk 0:00:09.7]} 47. Rf3
{[%clk 0:00:10.2]} 47... Be6 {[%clk 0:00:10.4]} 48. Rd3 {[%clk 0:00:10.9]} 48...
Rd5 {[%clk 0:00:10.6]} 49. Rc3 {[%clk 0:00:11.5]} 49... Bf5 {[%clk 0:00:10.7]}
50. Rc2 {[%clk 0:00:12.4]} 50... Be4 {[%clk 0:00:11.3]} 51. Rb2 {[%clk
0:00:13.3]} 51... Rd7 {[%clk 0:00:11.1]} 52. Ke3 {[%clk 0:00:14.2]} 52... f5
{[%clk 0:00:11.4]} 53. Kf4 {[%clk 0:00:14.5]} 53... Kf6 {[%clk 0:00:11.8]} 54.
Rh2 {[%clk 0:00:14.3]} 54... Rg7 {[%clk 0:00:11.8]} 55. Rh6+ {[%clk 0:00:14.3]}
55... Rg6 {[%clk 0:00:12.3]} 56. Rh7 {[%clk 0:00:15.2]} 56... Rg4+ {[%clk
0:00:12.6]} 57. Ke3 {[%clk 0:00:15.9]} 57... Ke5 {[%clk 0:00:13.3]} 58. Re7+
{[%clk 0:00:15.6]} 58... Kd5 {[%clk 0:00:13.5]} 59. Rxb7 {[%clk 0:00:16.5]}
59... Rg3+ {[%clk 0:00:14.1]} 60. Kf4 {[%clk 0:00:16.1]} 60... Rxa3 {[%clk
0:00:15]} 61. Kg5 {[%clk 0:00:17]} 61... Kxc5 {[%clk 0:00:15]} 62. Rd7 {[%clk
0:00:17.7]} 62... a5 {[%clk 0:00:15.3]} 63. Re7 {[%clk 0:00:18.5]} 63... a4
{[%clk 0:00:15.8]} 64. Re5+ {[%clk 0:00:19.4]} 64... Kb6 {[%clk 0:00:15.9]} 65.
Re8 {[%clk 0:00:19.7]} 65... Rg3+ {[%clk 0:00:16]} 66. Kf4 {[%clk 0:00:19.2]}
66... Rf3+ {[%clk 0:00:16.9]} 67. Ke5 {[%clk 0:00:19.9]} 67... a3 {[%clk
0:00:17.8]} 68. Rb8+ {[%clk 0:00:20.1]} 68... Kc7 {[%clk 0:00:17.7]} 69. Ra8
{[%clk 0:00:20.3]} 69... Kb7 {[%clk 0:00:18.2]} 70. Ra4 {[%clk 0:00:20.2]} 70...
c5 {[%clk 0:00:17.5]} 71. Kd6 {[%clk 0:00:20]} 71... Kb6 {[%clk 0:00:18.1]} 72.
Rxa3 {[%clk 0:00:19.8]} 72... Rxa3 {[%clk 0:00:18.1]} 0-1

[Event "Early-Titled-Tuesday-Blitz-November-28-2023"]
[Site "Chess.com"]
[Date "2023.11.28"]
[Round "5"]
[White "ElVital"]
[Black "Sconko"]
[Result "0-1"]
[WhiteElo "2381"]
[BlackElo "2260"]
[TimeControl "180+1"]
[EndTime "8:58:56 PST"]
[Termination "Sconko won on time"]

1. e4 {[%clk 0:03:00.9]} 1... c5 {[%clk 0:02:59.8]} 2. d4 {[%clk 0:02:57.4]}
2... cxd4 {[%clk 0:02:59.6]} 3. Qxd4 {[%clk 0:02:58.3]} 3... Nc6 {[%clk
0:02:58.1]} 4. Qd3 {[%clk 0:02:58.8]} 4... g6 {[%clk 0:02:57.1]} 5. Nc3 {[%clk
0:02:59.1]} 5... Bg7 {[%clk 0:02:57.3]} 6. Nf3 {[%clk 0:02:59.6]} 6... d6 {[%clk
0:02:57.5]} 7. Be2 {[%clk 0:02:59.8]} 7... Nf6 {[%clk 0:02:58.2]} 8. O-O {[%clk
0:03:00.3]} 8... O-O {[%clk 0:02:58.3]} 9. Nd5 {[%clk 0:03:00.8]} 9... Nd7
{[%clk 0:02:52.3]} 10. c3 {[%clk 0:03:00]} 10... Nc5 {[%clk 0:02:52.4]} 11. Qc2
{[%clk 0:02:59.8]} 11... Be6 {[%clk 0:02:45.7]} 12. Rd1 {[%clk 0:02:57]} 12...
h6 {[%clk 0:02:32.7]} 13. a4 {[%clk 0:02:51.8]} 13... Rc8 {[%clk 0:02:30.3]} 14.
a5 {[%clk 0:02:34.3]} 14... f5 {[%clk 0:02:11.7]} 15. Nf4 {[%clk 0:02:24]} 15...
Bb3 {[%clk 0:01:21.6]} 16. Qd2 {[%clk 0:02:23.3]} 16... Nxe4 {[%clk 0:01:15.9]}
17. Qe3 {[%clk 0:02:16]} 17... Bxd1 {[%clk 0:01:00.1]} 18. Bxd1 {[%clk
0:02:15.9]} 18... e5 {[%clk 0:00:38.2]} 19. Bb3+ {[%clk 0:02:14]} 19... Kh7
{[%clk 0:00:36.7]} 20. Ne6 {[%clk 0:02:14.6]} 20... Qe7 {[%clk 0:00:36.4]} 21.
Nxf8+ {[%clk 0:02:14.2]} 21... Rxf8 {[%clk 0:00:36.2]} 22. Bd5 {[%clk
0:02:13.7]} 22... Nf6 {[%clk 0:00:33]} 23. c4 {[%clk 0:02:04]} 23... e4 {[%clk
0:00:28.7]} 24. Nd2 {[%clk 0:01:38.2]} 24... Ng4 {[%clk 0:00:25.3]} 25. Qh3
{[%clk 0:01:33.9]} 25... Bd4 {[%clk 0:00:23.1]} 26. Nb3 {[%clk 0:01:26.4]} 26...
Bxf2+ {[%clk 0:00:21.3]} 27. Kf1 {[%clk 0:01:26.4]} 27... Nce5 {[%clk
0:00:17.2]} 28. a6 {[%clk 0:01:20.1]} 28... Bh4 {[%clk 0:00:16.8]} 29. g3 {[%clk
0:01:16.8]} 29... Bg5 {[%clk 0:00:16.3]} 30. Bf4 {[%clk 0:01:15.2]} 30... Bxf4
{[%clk 0:00:15.5]} 31. gxf4 {[%clk 0:01:16.1]} 31... Nf3 {[%clk 0:00:15.4]} 32.
Ke2 {[%clk 0:01:13.2]} 32... b6 {[%clk 0:00:14.7]} 33. Rd1 {[%clk 0:01:08.8]}
33... Qf6 {[%clk 0:00:15.1]} 34. Rb1 {[%clk 0:01:02.1]} 34... g5 {[%clk
0:00:13.3]} 35. Qg3 {[%clk 0:00:53.9]} 35... gxf4 {[%clk 0:00:09.1]} 36. Qxf4
{[%clk 0:00:54.8]} 36... Qg5 {[%clk 0:00:08.7]} 37. Qxg5 {[%clk 0:00:48.1]}
37... hxg5 {[%clk 0:00:09.6]} 38. h3 {[%clk 0:00:48.6]} 38... Nge5 {[%clk
0:00:10]} 39. Rd1 {[%clk 0:00:45.3]} 39... Kg6 {[%clk 0:00:09.8]} 40. Nd4 {[%clk
0:00:44.4]} 40... Nxd4+ {[%clk 0:00:09.8]} 41. Rxd4 {[%clk 0:00:45.3]} 41... Nd3
{[%clk 0:00:09.6]} 42. Bb7 {[%clk 0:00:40.9]} 42... Nf4+ {[%clk 0:00:08.6]} 43.
Ke3 {[%clk 0:00:36.4]} 43... Rd8 {[%clk 0:00:09.5]} 44. b4 {[%clk 0:00:31.6]}
44... Kf6 {[%clk 0:00:08.9]} 45. c5 {[%clk 0:00:31.4]} 45... bxc5 {[%clk
0:00:09.6]} 46. bxc5 {[%clk 0:00:32.3]} 46... Ke5 {[%clk 0:00:10.3]} 47. cxd6
{[%clk 0:00:32]} 47... Rxd6 {[%clk 0:00:11.2]} 48. Rc4 {[%clk 0:00:19.6]} 48...
Rd3+ {[%clk 0:00:10.9]} 49. Kf2 {[%clk 0:00:20.1]} 49... e3+ {[%clk 0:00:10.2]}
50. Ke1 {[%clk 0:00:17.8]} 50... e2 {[%clk 0:00:08]} 51. Rc1 {[%clk 0:00:16.3]}
51... Kd4 {[%clk 0:00:08.3]} 52. Ra1 {[%clk 0:00:13.3]} 52... Ke3 {[%clk
0:00:08.3]} 53. Rb1 {[%clk 0:00:07.5]} 53... Rc3 {[%clk 0:00:08.5]} 0-1

[Event "Early-Titled-Tuesday-Blitz-November-28-2023"]
[Site "Chess.com"]
[Date "2023.11.28"]
[Round "5"]
[White "laziestwin"]
[Black "LaPiToB"]
[Result "0-1"]
[WhiteElo "2613"]
[BlackElo "2276"]
[TimeControl "180+1"]
[EndTime "8:58:58 PST"]
[Termination "LaPiToB won by checkmate"]

1. d4 {[%clk 0:03:00.9]} 1... Nf6 {[%clk 0:02:59.1]} 2. c4 {[%clk 0:03:01.4]}
2... e6 {[%clk 0:02:59.3]} 3. Nc3 {[%clk 0:03:01.9]} 3... Bb4 {[%clk 0:02:59.1]}
4. Qc2 {[%clk 0:03:02.3]} 4... O-O {[%clk 0:02:58.7]} 5. e4 {[%clk 0:03:02.9]}
5... d5 {[%clk 0:02:58.4]} 6. e5 {[%clk 0:03:02.5]} 6... Ne4 {[%clk 0:02:58.3]}
7. Nf3 {[%clk 0:03:03.1]} 7... c5 {[%clk 0:02:57.7]} 8. Bd3 {[%clk 0:03:03.3]}
8... cxd4 {[%clk 0:02:44.1]} 9. Nxd4 {[%clk 0:03:04.2]} 9... Qh4 {[%clk
0:02:17.2]} 10. g3 {[%clk 0:02:58.6]} 10... Qh5 {[%clk 0:02:05.8]} 11. O-O
{[%clk 0:02:24.9]} 11... Bxc3 {[%clk 0:01:59.9]} 12. bxc3 {[%clk 0:02:25.8]}
12... Qxe5 {[%clk 0:01:57]} 13. Bf4 {[%clk 0:02:23.9]} 13... Qh5 {[%clk
0:01:54.8]} 14. cxd5 {[%clk 0:02:19.6]} 14... exd5 {[%clk 0:01:53.5]} 15. Bxe4
{[%clk 0:02:19.1]} 15... dxe4 {[%clk 0:01:53.3]} 16. Qxe4 {[%clk 0:02:19.2]}
16... Nc6 {[%clk 0:01:47.7]} 17. Rfe1 {[%clk 0:01:53.5]} 17... Bg4 {[%clk
0:01:39.1]} 18. f3 {[%clk 0:01:38]} 18... Bd7 {[%clk 0:01:36.4]} 19. g4 {[%clk
0:01:33.9]} 19... Qc5 {[%clk 0:01:30.7]} 20. Qd3 {[%clk 0:01:14.9]} 20... Rad8
{[%clk 0:01:21]} 21. Kg2 {[%clk 0:01:10.1]} 21... Be8 {[%clk 0:01:03.9]} 22.
Rad1 {[%clk 0:01:03.8]} 22... Nxd4 {[%clk 0:01:01.8]} 23. cxd4 {[%clk
0:01:04.7]} 23... Qd5 {[%clk 0:01:00.9]} 24. Qb3 {[%clk 0:01:00.3]} 24... Bc6
{[%clk 0:00:57.6]} 25. Qxd5 {[%clk 0:00:55.4]} 25... Rxd5 {[%clk 0:00:57.5]} 26.
Re7 {[%clk 0:00:48.4]} 26... Rfd8 {[%clk 0:00:55.7]} 27. Be3 {[%clk 0:00:46.4]}
27... Kf8 {[%clk 0:00:53.2]} 28. Rc7 {[%clk 0:00:46]} 28... h6 {[%clk
0:00:48.4]} 29. Kf2 {[%clk 0:00:45.4]} 29... Ra5 {[%clk 0:00:46.2]} 30. Rd2
{[%clk 0:00:45.2]} 30... Rad5 {[%clk 0:00:44.5]} 31. Rb2 {[%clk 0:00:44.6]}
31... a6 {[%clk 0:00:42.9]} 32. h4 {[%clk 0:00:40]} 32... h5 {[%clk 0:00:41.9]}
33. Kg3 {[%clk 0:00:39.4]} 33... hxg4 {[%clk 0:00:41.4]} 34. fxg4 {[%clk
0:00:39.9]} 34... Re8 {[%clk 0:00:40.9]} 35. Rb3 {[%clk 0:00:21.8]} 35... Re4
{[%clk 0:00:33.7]} 36. h5 {[%clk 0:00:14.2]} 36... Kg8 {[%clk 0:00:32.1]} 37. g5
{[%clk 0:00:09.8]} 37... Kh7 {[%clk 0:00:30.1]} 38. g6+ {[%clk 0:00:09]} 38...
fxg6 {[%clk 0:00:29.8]} 39. h6 {[%clk 0:00:09.7]} 39... Rd7 {[%clk 0:00:17.4]}
40. Rxd7 {[%clk 0:00:08.5]} 40... Bxd7 {[%clk 0:00:17.5]} 41. hxg7 {[%clk
0:00:07.4]} 41... Kxg7 {[%clk 0:00:17]} 42. d5 {[%clk 0:00:05.4]} 42... Bc8
{[%clk 0:00:15.3]} 43. d6 {[%clk 0:00:04.8]} 43... Re6 {[%clk 0:00:14.7]} 44.
Bc5 {[%clk 0:00:03.6]} 44... Kf6 {[%clk 0:00:14.8]} 45. Rf3+ {[%clk 0:00:03.6]}
45... Ke5 {[%clk 0:00:14.6]} 46. Re3+ {[%clk 0:00:04.1]} 46... Kd5 {[%clk
0:00:14.8]} 47. Rxe6 {[%clk 0:00:05]} 47... Kxe6 {[%clk 0:00:15]} 48. Ba3 {[%clk
0:00:03.4]} 48... Kd5 {[%clk 0:00:14.8]} 49. Kf4 {[%clk 0:00:02.6]} 49... b5
{[%clk 0:00:13.9]} 50. Bb4 {[%clk 0:00:02.1]} 50... Kc4 {[%clk 0:00:13.3]} 51.
Ba3 {[%clk 0:00:01.5]} 51... a5 {[%clk 0:00:12.9]} 52. Bb2 {[%clk 0:00:01.7]}
52... b4 {[%clk 0:00:10.9]} 53. Bc3 {[%clk 0:00:02.6]} 53... Kxc3 {[%clk
0:00:10.5]} 54. Kg5 {[%clk 0:00:01.8]} 54... Kb2 {[%clk 0:00:10.6]} 55. Kxg6
{[%clk 0:00:02.3]} 55... Kxa2 {[%clk 0:00:10.9]} 56. Kf7 {[%clk 0:00:03.2]}
56... b3 {[%clk 0:00:11]} 57. Ke7 {[%clk 0:00:04.1]} 57... b2 {[%clk 0:00:11.1]}
58. d7 {[%clk 0:00:05]} 58... Bxd7 {[%clk 0:00:11.1]} 59. Kxd7 {[%clk
0:00:04.2]} 59... b1=Q {[%clk 0:00:12]} 60. Kd6 {[%clk 0:00:04.9]} 60... Kb2
{[%clk 0:00:12.9]} 61. Ke5 {[%clk 0:00:05.5]} 61... a4 {[%clk 0:00:13.8]} 62.
Kd4 {[%clk 0:00:05.4]} 62... a3 {[%clk 0:00:14.7]} 63. Ke3 {[%clk 0:00:05.2]}
63... a2 {[%clk 0:00:15.6]} 64. Kd4 {[%clk 0:00:05.5]} 64... a1=Q {[%clk
0:00:16.5]} 65. Ke3 {[%clk 0:00:06]} 65... Qa3+ {[%clk 0:00:16.7]} 66. Kd4
{[%clk 0:00:06.9]} 66... Qbd3+ {[%clk 0:00:16.7]} 67. Ke5 {[%clk 0:00:07.8]}
67... Qc5+ {[%clk 0:00:16.7]} 68. Kf4 {[%clk 0:00:08.3]} 68... Qdd4+ {[%clk
0:00:16.7]} 69. Kg3 {[%clk 0:00:08.5]} 69... Qcc3+ {[%clk 0:00:17.6]} 70. Kg2
{[%clk 0:00:07]} 70... Qdd2+ {[%clk 0:00:18.5]} 71. Kf1 {[%clk 0:00:06.8]} 71...
Qcc1# {[%clk 0:00:19.4]} 0-1